Cogmind - Beta 10 @@@ ROGUE MODE // 2020.09.16 @ 18:56:16 // AFD2019/Pay2Buy Player: Sandwich Result: Destroyed by S-27 Virus with Autogun Performance ------------- Evolutions (6) 3000 Regions Visited (17) 3400 Robots Destroyed (44) 220 Value Destroyed (3346) 3346 Prototype IDs (10) 200 Alien Tech Used (0) 0 Bonus (3901) 3901 TOTAL SCORE: 14067 Bonus ------- Pacifist 200 High Alert Combat Kills 374 Follower Combat Kills 2217 Network Hubs Disabled 400 Aligned with FarCom 300 Built Enhanced Grunts 300 A7 Reached Mainframe 300 Friendly Fire -190 Cogmind --------- Core Integrity 0/1150 Matter 295/300 Energy 70/100 System Corruption 9% Temperature Cool (9) Movement Core (200) Ox3 Location -4/Upper Caves Parts ------- > --- POWER (3) -------- (None) > --- PROPULSION (5) --- (None) > --- UTILITY (9) ------ Improved Signal Interpreter Advanced Terrain Scan Processor Advanced Melee Analysis Suite Improved Weapon Shielding > --- WEAPON (2) ------- Vibroblade Vibroblade > --- INVENTORY (10) --- Centrium Wheel Improved Phase Shifter Improved Datajack Axe Peak State ------------ > --- POWER ------------ Micro Fission Core Micro Fission Core Micro Fission Core > --- PROPULSION ------- Field Propulsion Drive Field Propulsion Array > --- UTILITY ---------- Improved Signal Interpreter Advanced Terrain Scan Processor Advanced Melee Analysis Suite Experimental Melee Analysis Suite Advanced ECM Suite Improved Maneuvering Thrusters Improved Phase Shifter Improved Weapon Shielding Improved Hacking Suite > --- WEAPON ----------- Vibroblade Vibroblade > --- INVENTORY -------- Advanced Sensor Array Improved Datajack Axe [Rating: 98] Favorites ----------- Power Micro Fission Core Engine Light Deuterium Engine Power Core Micro Fission Core Propulsion Makeshift Flight Unit Wheel Centrium Wheel Flight Unit Makeshift Flight Unit Utility Improved Signal Interpreter Device Advanced Sensor Array Processor Improved Signal Interpreter Hackware Improved Hacking Suite Protection Improved Weapon Shielding Weapon Vibroblade Slashing Weapon Vibroblade Special Melee Weapon Improved Datajack Build | -11 -10 -9 -9 -9 -8 -8 -8 -8 -6 -5 -5 -5 -5 -5 -4 -4 -4 ------- Run | Scr Mat Mat Min Exi Min Mat Sto Rec Fac Fac Ext Cet Arc Hub Fac Upp Upp Slots Evolved 12 | . . 2 . . . 2 . . 4 2 . . . . 2 . . Power 2 | . . . . . . 1 . . . . . . . . 1 . . Propulsion 3 | . . . . . . 1 . . . 2 . . . . . . . Utility 7 | . . 2 . . . . . . 4 . . . . . 1 . . Weapon . | . . . . . . . . . . . . . . . . . . Parts Attached 15 | . . . . . . . . 1 2 . 7 . . 3 . 2 . Power 4 | . . . . . . . . . 2 . . . . 2 . . . Engine 2 | . . . . . . . . . 2 . . . . . . . . Core 2 | . . . . . . . . . . . . . . 2 . . . Reactor . | . . . . . . . . . . . . . . . . . . Propulsion 1 | . . . . . . . . . . . . . . . . 1 . Treads . | . . . . . . . . . . . . . . . . . . Leg . | . . . . . . . . . . . . . . . . . . Wheel 1 | . . . . . . . . . . . . . . . . 1 . Hover . | . . . . . . . . . . . . . . . . . . Flight . | . . . . . . . . . . . . . . . . . . Utility 3 | . . . . . . . . 1 . . . . . 1 . 1 . Device 2 | . . . . . . . . . . . . . . 1 . 1 . Storage . | . . . . . . . . . . . . . . . . . . Processor 1 | . . . . . . . . 1 . . . . . . . . . Hackware . | . . . . . . . . . . . . . . . . . . Protection . | . . . . . . . . . . . . . . . . . . Artifact . | . . . . . . . . . . . . . . . . . . Weapon 7 | . . . . . . . . . . . 7 . . . . . . Energy Gun . | . . . . . . . . . . . . . . . . . . Energy Cannon . | . . . . . . . . . . . . . . . . . . Ballistic Gun . | . . . . . . . . . . . . . . . . . . Ballistic Cannon . | . . . . . . . . . . . . . . . . . . Launcher . | . . . . . . . . . . . . . . . . . . Special Weapon . | . . . . . . . . . . . . . . . . . . Impact Weapon . | . . . . . . . . . . . . . . . . . . Slashing Weapon 4 | . . . . . . . . . . . 4 . . . . . . Piercing Weapon . | . . . . . . . . . . . . . . . . . . Special Melee Weapon 3 | . . . . . . . . . . . 3 . . . . . . Unidentified Prototypes . | . . . . . . . . . . . . . . . . . . Parts Lost 34 | . . 1 . . . . 4 . 7 . 2 . 3 7 . 2 8 Power 7 | . . . . . . . . . 2 . . . 1 1 . . 3 Propulsion 11 | . . . . . . . 2 . 3 . 1 . . 3 . 1 1 Utility 15 | . . 1 . . . . 2 . 2 . 1 . 1 3 . 1 4 Weapon 1 | . . . . . . . . . . . . . 1 . . . . Highest Loss Streak 8 | . . 1 . . . . 2 . 5 . 1 . 3 4 . 1 8 Average Slot Usage (%) 67 | . 28 54 55 55 51 63 49 75 74 64 64 70 73 72 75 79 77 Engine 1 | . . . . . . 9 . . 1 5 5 5 4 3 . . . Core 6 | . . . . . . . 4 11 5 . . . . 3 12 15 14 Wheel 1 | . . . . . . . . . . . . . . . . 4 4 Flight 7 | . . . . . . 18 8 20 11 11 11 11 11 9 10 5 4 Device 11 | . 14 21 22 22 18 9 9 9 5 5 1 5 5 5 10 15 14 Processor 18 | . 14 22 22 22 22 18 18 18 13 11 12 17 17 20 21 21 20 Hackware 7 | . . . . . . . . 7 28 23 23 23 18 9 5 1 . Protection 2 | . . . . . . . . . . . . . 3 5 5 5 5 Slashing Weapon 8 | . . 11 11 11 11 9 9 9 6 5 4 5 9 11 10 10 10 Naked Turns . | . . . . . . . . . . . . . . . . . . Heaviest Build 32 | 1 1 5 5 5 5 9 12 17 17 10 16 16 25 25 30 32 31 Greatest Support 46 | 3 3 3 3 3 3 15 16 24 25 17 31 31 31 46 32 32 16 Greatest Overweight (x) 4 | . . 1 1 1 1 . 1 . 1 . . . . . . 1 4 Average Overweight (x) . | . . 1 1 1 1 . . . . . . . . . . . 1 Largest Inventory Capacity 10 | 10 10 10 10 10 10 10 10 10 10 10 10 10 10 10 10 10 10 Average Capacity 10 | 10 10 10 10 10 10 10 10 10 10 10 10 10 10 10 10 10 10 Most Carried 5 | . . . . . 1 1 2 2 2 1 5 3 3 3 3 4 4 Average Carried 2 | . . . . . . 1 1 2 1 1 1 3 3 3 3 3 3 Final Capacity 10 | 10 10 10 10 10 10 10 10 10 10 10 10 10 10 10 10 10 10 Final Carried 4 | . . . . . 1 1 2 2 1 1 3 3 3 3 3 3 4 Class Distribution -------------------- 31% | Generator-Mutant 19% | Assassin 13% | Hacker-Mutant 9% | Commander-Scout 8% | Hacker-Scout 6% | Hacker-Gladiator 6% | Mutant 4% | Scout Dominant Class ---------------- Mutant | -10/Materials Assassin | -9/Materials Assassin | -9/Mines Assassin | -9/Exiles Assassin | -8/Mines Scout | -8/Materials Assassin | -8/Storage Commander-Scout | -8/Recycling Hacker-Scout | -6/Factory Hacker-Scout | -5/Factory Hacker-Mutant | -5/Extension Hacker-Gladiator | -5/Cetus Hacker-Mutant | -5/Archives Hacker-Mutant | -5/Hub_04(d) Generator-Mutant | -4/Factory Generator-Mutant | -4/Upper Caves Generator-Mutant | -4/Upper Caves Resources | -11 -10 -9 -9 -9 -8 -8 -8 -8 -6 -5 -5 -5 -5 -5 -4 -4 -4 ----------- Run | Scr Mat Mat Min Exi Min Mat Sto Rec Fac Fac Ext Cet Arc Hub Fac Upp Upp Matter Collected 365 | . . 63 . . . . 122 10 . . 85 . . 35 9 15 26 Remotely . | . . . . . . . . . . . . . . . . . . Salvage Created 2203 | . . 93 . . . . 231 323 298 . 101 73 . 552 95 387 50 Parts . | . . . . . . . . . . . . . . . . . . Haulers Intercepted 2 | . . . . . . . 1 . . . . . . . 1 . . Recyclers Shooed . | . . . . . . . . . . . . . . . . . . Parts Field Recycled . | . . . . . . . . . . . . . . . . . . Retrieved Matter . | . . . . . . . . . . . . . . . . . . Parts Self-Destructed . | . . . . . . . . . . . . . . . . . . Prevented . | . . . . . . . . . . . . . . . . . . Kills | -11 -10 -9 -9 -9 -8 -8 -8 -8 -6 -5 -5 -5 -5 -5 -4 -4 -4 ------- Run | Scr Mat Mat Min Exi Min Mat Sto Rec Fac Fac Ext Cet Arc Hub Fac Upp Upp Combat Hostiles Destroyed 34 | . . 4 . . . . 2 3 6 . 2 1 . 8 . 6 2 Melee 32 | . . 3 . . . . 2 3 6 . 2 1 . 7 . 6 2 AOE 1 | . . 1 . . . . . . . . . . . . . . . Classes Destroyed 11 | . . 2 . . . . 3 2 . . . . . 4 . . . Worker 1 | . . . . . . . . . . . . . . 1 . . . Builder 1 | . . . . . . . . . . . . . . 1 . . . Hauler 2 | . . . . . . . 1 . . . . . . . 1 . . Recycler 4 | . . . . . . . . 4 . . . . . . . . . Operator 1 | . . . . . . . 1 . . . . . . . . . . Drone 3 | . . . . . . . . 3 . . . . . . . . . Swarmer 8 | . . 3 . . . . 1 . 2 . . . . . . . 2 Grunt 12 | . . . . . . . 1 . 3 . 1 . . 3 . 4 . Protector 1 | . . . . . . . . . . . . . . 1 . . . Sentry 6 | . . 1 . . . . 1 . 1 . 1 . . 2 . . . Programmer 4 | . . . . . . . . . . . . . . 2 . 2 . Cetus Guard 1 | . . . . . . . . . . . . 1 . . . . . Best Kill Streak 4 | . . 2 . . . . 1 4 3 . 1 1 . 3 1 2 2 Combat Bots Only 3 | . . 2 . . . . 1 1 3 . 1 1 . 3 . 2 2 Max Kills in Single Turn 2 | . . 1 . . . . 1 1 1 . 1 1 . 2 1 1 2 Gunslinging . | . . . . . . . . . . . . . . . . . . Exploded 1 | . . 1 . . . . . . . . . . . . . . . Melee 2 | . . 1 . . . . 1 1 1 . 1 1 . 1 . 1 2 Uniques/NPCs Destroyed . | . . . . . . . . . . . . . . . . . . Combat | -11 -10 -9 -9 -9 -8 -8 -8 -8 -6 -5 -5 -5 -5 -5 -4 -4 -4 -------- Run | Scr Mat Mat Min Exi Min Mat Sto Rec Fac Fac Ext Cet Arc Hub Fac Upp Upp Damage Taken 4270 | . 65 162 . . . 29 472 . 378 . 254 40 194 850 . 445 1381 Core 2252 | . 48 110 . . . . 319 . 160 . 74 . 30 357 . 158 996 Absorbed by Shields 112 | . . . . . . . . . . . 94 18 . . . . . Core Remaining (%) 71 | 100 80 . . . 72 . . 42 81 . . . . 53 . . . Volleys Fired . | . . . . . . . . . . . . . . . . . . Largest . | . . . . . . . . . . . . . . . . . . Hottest . | . . . . . . . . . . . . . . . . . . Shots Fired . | . . . . . . . . . . . . . . . . . . Gun . | . . . . . . . . . . . . . . . . . . Cannon . | . . . . . . . . . . . . . . . . . . Launcher . | . . . . . . . . . . . . . . . . . . Special . | . . . . . . . . . . . . . . . . . . Kinetic . | . . . . . . . . . . . . . . . . . . Thermal . | . . . . . . . . . . . . . . . . . . Explosive . | . . . . . . . . . . . . . . . . . . Electromagnetic . | . . . . . . . . . . . . . . . . . . Robot Hit Streak . | . . . . . . . . . . . . . . . . . . Robot Miss Streak . | . . . . . . . . . . . . . . . . . . Penetration Max . | . . . . . . . . . . . . . . . . . . Secondary Targets . | . . . . . . . . . . . . . . . . . . Shots Hit Robots 145 | . . 5 . . . . 11 10 16 . 41 5 3 22 4 21 7 Core Hits 64 | . . 4 . . . . 5 7 8 . 3 1 . 24 1 8 3 Critical Hits 6 | . . 1 . . . . 1 . 1 . . . . 1 1 1 . Critical Kills 3 | . . . . . . . . . 1 . . . . 1 . 1 . Critical Parts Destroyed 3 | . . 1 . . . . 1 . . . . . . . 1 . . Melee Attacks 378 | . . 33 . . . 10 66 31 39 7 64 5 3 67 18 23 12 Impact . | . . . . . . . . . . . . . . . . . . Slashing 360 | . . 33 . . . 10 66 31 39 7 46 5 3 67 18 23 12 Piercing . | . . . . . . . . . . . . . . . . . . Sneak Attacks 43 | . . . . . . . 7 5 1 . 24 . . 2 1 3 . Combat Hostiles 13 | . . . . . . . 4 . 1 . 3 . . 2 . 3 . Follow-up Attacks 10 | . . . . . . . . . . . . . . 7 1 1 1 Damage Inflicted 9231 | . . 303 . . . . 975 744 623 . 1831 370 210 1938 346 1513 378 Guns . | . . . . . . . . . . . . . . . . . . Cannons . | . . . . . . . . . . . . . . . . . . Explosions 677 | . . 109 . . . . . . . . . . . 568 . . . Melee 8554 | . . 194 . . . . 975 744 623 . 1831 370 210 1370 346 1513 378 Ramming . | . . . . . . . . . . . . . . . . . . Kinetic . | . . . . . . . . . . . . . . . . . . Thermal 109 | . . 109 . . . . . . . . . . . . . . . Explosive . | . . . . . . . . . . . . . . . . . . Electromagnetic 568 | . . . . . . . . . . . . . . 568 . . . Impact . | . . . . . . . . . . . . . . . . . . Slashing 8554 | . . 194 . . . . 975 744 623 . 1831 370 210 1370 346 1513 378 Piercing . | . . . . . . . . . . . . . . . . . . Highest Corruption 9 | . . . . . . . . . . . 1 1 1 7 . 4 9 Average Corruption 2 | . . . . . . . . . . . 1 1 1 2 . 3 4 Corruption Purged . | . . . . . . . . . . . . . . . . . . Effects 50 | . . . . . . . . . . . 3 3 . 12 . 2 30 Message Errors 14 | . . . . . . . . . . . . 1 . 4 . 1 8 Matter Fused 11 | . . . . . . . . . . . . . . 2 . . 9 Heat Flow Errors 6 | . . . . . . . . . . . . . . 2 . . 4 Energy Discharges 9 | . . . . . . . . . . . 2 . . 3 . 1 3 Data Loss (minor) 6 | . . . . . . . . . . . . 1 . . . . 5 Targeting Errors 4 | . . . . . . . . . . . 1 1 . 1 . . 1 Overload Shots . | . . . . . . . . . . . . . . . . . . Overflow Damage 1289 | . . . . . . . 122 129 4 . 443 23 . 331 2 208 27 Projectiles . | . . . . . . . . . . . . . . . . . . Explosions 102 | . . . . . . . 20 . . . . . . 82 . . . Melee 1187 | . . . . . . . 102 129 4 . 443 23 . 249 2 208 27 Knockbacks . | . . . . . . . . . . . . . . . . . . Impact . | . . . . . . . . . . . . . . . . . . Kinetic . | . . . . . . . . . . . . . . . . . . Secondary . | . . . . . . . . . . . . . . . . . . Self-Inflicted Damage 344 | . . . . . . . 235 . . . . . . 109 . . . Shots 4 | . . . . . . . 3 . . . . . . 1 . . . Rammed . | . . . . . . . . . . . . . . . . . . Targets Rammed . | . . . . . . . . . . . . . . . . . . Kicked . | . . . . . . . . . . . . . . . . . . Crushed . | . . . . . . . . . . . . . . . . . . Highest Temperature 259 | . . . . . . . . . . . . . . 259 . 20 253 Average Temperature 112 | . . . . . . . . . . . . . . 125 . 12 111 Received Heat Transfer 534 | . . 9 . . . 9 63 . 114 . 54 . 27 66 . 84 108 Siege Activations . | . . . . . . . . . . . . . . . . . . Robots Corrupted 2 | . . . . . . . . . . . . . . 2 . . . Combat Hostiles 1 | . . . . . . . . . . . . . . 1 . . . Parts Fried . | . . . . . . . . . . . . . . . . . . Impact Corruptions . | . . . . . . . . . . . . . . . . . . Robots Melted . | . . . . . . . . . . . . . . . . . . Combat Hostiles . | . . . . . . . . . . . . . . . . . . Parts Melted . | . . . . . . . . . . . . . . . . . . Heat Transferred 50 | . . 50 . . . . . . . . . . . . . . . Parts Sabotaged . | . . . . . . . . . . . . . . . . . . Parts Stolen . | . . . . . . . . . . . . . . . . . . Parts Stripped . | . . . . . . . . . . . . . . . . . . Power Chain Reactions . | . . . . . . . . . . . . . . . . . . Missiles Intercepted . | . . . . . . . . . . . . . . . . . . Alert | -11 -10 -9 -9 -9 -8 -8 -8 -8 -6 -5 -5 -5 -5 -5 -4 -4 -4 ------- Run | Scr Mat Mat Min Exi Min Mat Sto Rec Fac Fac Ext Cet Arc Hub Fac Upp Upp Peak Influence 1192 | . . 233 90 . . 125 1097 625 1192 490 1068 752 472 1088 759 . . Initial 1071 | . . . 90 . . . 52 427 1071 490 196 597 300 165 523 . . Average 459 | . . 99 90 . . 75 466 521 1064 395 359 728 417 503 647 . . Maximum Alert Level 4 | . . 1 . . . . 3 2 4 2 3 3 2 3 3 . . Low Security (%) 34 | 100 100 90 100 . 100 100 22 . . . 39 . . 24 . . . Level 1 14 | . . 9 . . . . 19 . . 60 30 . 36 31 . . . Level 2 22 | . . . . . . . 40 100 . 39 3 17 63 10 81 . . Level 3 23 | . . . . . . . 18 . 60 . 25 82 . 32 18 . . Level 4 4 | . . . . . . . . . 39 . . . . . . . . Level 5 . | . . . . . . . . . . . . . . . . . . High Security . | . . . . . . . . . . . . . . . . . . Max Security . | . . . . . . . . . . . . . . . . . . Squads Dispatched 14 | . . 1 . . . . 2 . . . 3 . . 6 2 . . Investigation 2 | . . . . . . . 1 . . . . . . 1 . . . Extermination 2 | . . . . . . . . . . . . . . 2 . . . Reinforcement 7 | . . 1 . . . . . . . . 3 . . 1 2 . . Assault 3 | . . . . . . . 1 . . . . . . 2 . . . Garrison . | . . . . . . . . . . . . . . . . . . Intercept . | . . . . . . . . . . . . . . . . . . Construction Impeded 3 | . . . . . . . . . . . 2 . . 1 . . . Haulers Reinforced 1 | . . . . . . . . . . . . . . . 1 . . Stealth | -11 -10 -9 -9 -9 -8 -8 -8 -8 -6 -5 -5 -5 -5 -5 -4 -4 -4 --------- Run | Scr Mat Mat Min Exi Min Mat Sto Rec Fac Fac Ext Cet Arc Hub Fac Upp Upp Distress Signals 9 | . . . . . . 1 1 . 4 . . 1 . 1 1 . . Communications Jammed . | . . . . . . . . . . . . . . . . . . Distress Signals . | . . . . . . . . . . . . . . . . . . Times Spotted 195 | . 6 11 2 . . 4 20 25 7 . 28 8 4 45 3 24 8 Peak Tracking Total 25 | . 4 5 2 . . 3 3 4 3 . 6 8 3 25 1 4 6 Tactical Retreats 25 | . 2 1 1 . . 1 2 . 1 . 1 . . 6 1 7 2 Traps | -11 -10 -9 -9 -9 -8 -8 -8 -8 -6 -5 -5 -5 -5 -5 -4 -4 -4 ------- Run | Scr Mat Mat Min Exi Min Mat Sto Rec Fac Fac Ext Cet Arc Hub Fac Upp Upp Traps Triggered 7 | . . . . . . . . . 4 . 2 . . 1 . . . Indirectly . | . . . . . . . . . . . . . . . . . . Trap Hack Attempts . | . . . . . . . . . . . . . . . . . . Triggered . | . . . . . . . . . . . . . . . . . . Disarmed . | . . . . . . . . . . . . . . . . . . Reprogrammed . | . . . . . . . . . . . . . . . . . . Reused . | . . . . . . . . . . . . . . . . . . Traps Extracted . | . . . . . . . . . . . . . . . . . . Installed . | . . . . . . . . . . . . . . . . . . Triggered . | . . . . . . . . . . . . . . . . . . Machines | -11 -10 -9 -9 -9 -8 -8 -8 -8 -6 -5 -5 -5 -5 -5 -4 -4 -4 ---------- Run | Scr Mat Mat Min Exi Min Mat Sto Rec Fac Fac Ext Cet Arc Hub Fac Upp Upp Machines Disabled 154 | . . 20 . . . 4 35 10 15 3 17 . 2 37 11 . . Max in Single Turn 13 | . . 3 . . . 1 2 1 1 1 1 . . 13 1 . . Garrison Access 2 | . . . . . . . 1 . . . . . . 1 . . . Network Hub 2 | . . . . . . . . . . . . . . 2 . . . Machines Sabotaged . | . . . . . . . . . . . . . . . . . . Garrisons Compromised . | . . . . . . . . . . . . . . . . . . Overloaded Fab Kills . | . . . . . . . . . . . . . . . . . . Fab Network Shutdowns . | . . . . . . . . . . . . . . . . . . Hacking | -11 -10 -9 -9 -9 -8 -8 -8 -8 -6 -5 -5 -5 -5 -5 -4 -4 -4 --------- Run | Scr Mat Mat Min Exi Min Mat Sto Rec Fac Fac Ext Cet Arc Hub Fac Upp Upp Machines Accessed 53 | . . 7 . . . 2 13 3 1 2 13 3 . 7 1 1 . Terminals 52 | . . 7 . . . 2 13 3 1 2 13 3 . 7 1 . . Fabricators . | . . . . . . . . . . . . . . . . . . Repair Stations . | . . . . . . . . . . . . . . . . . . Recycling Units . | . . . . . . . . . . . . . . . . . . Scanalyzers . | . . . . . . . . . . . . . . . . . . Garrison Access . | . . . . . . . . . . . . . . . . . . Total Hacks 137 | . . 20 . . . 5 37 7 3 5 29 12 . 15 3 1 . Successful 81 | . . 10 . . . 3 19 2 3 3 21 10 . 7 2 1 . Failed 56 | . . 10 . . . 2 18 5 . 2 8 2 . 8 1 . . Catastrophic 11 | . . 1 . . . 2 3 2 . . 1 . . 2 . . . Database Lockouts . | . . . . . . . . . . . . . . . . . . Manual 55 | . . 15 . 1 . 5 14 6 1 2 7 2 . 2 . . . Terminals 136 | . . 20 . . . 5 37 7 3 5 29 12 . 15 3 . . Fabricators . | . . . . . . . . . . . . . . . . . . Repair Stations . | . . . . . . . . . . . . . . . . . . Recycling Units . | . . . . . . . . . . . . . . . . . . Scanalyzers . | . . . . . . . . . . . . . . . . . . Garrison Access . | . . . . . . . . . . . . . . . . . . Terminal Hacks 76 | . . 6 . . . 3 18 2 3 3 21 10 . 7 2 1 . Record 9 | . . . . . . . . . . . . 9 . . . . . Robot Analysis 1 | . . . . . . . . . . . . . . 1 . . . Prototype ID Bank 3 | . . . . . . . 3 . . . . . . . . . . Open Door 13 | . . . . . . . 2 . . 1 8 1 . . . 1 . Level Access Points 4 | . . . . . . . 1 . 1 . 1 . . 1 . . . Branch Access Points 2 | . . 1 . . . . . . . . 1 . . . . . . Emergency Access Points 1 | . . . . . . . . . . . . . . . 1 . . Recycling Unit Index 1 | . . . . . . . . . . . 1 . . . . . . Alert Level 4 | . . 1 . . . . 1 . . . 2 . . . . . . Unreport Threat 21 | . . 3 . . . 2 3 2 1 1 5 . . 4 . . . Locate Traps 2 | . . . . . . . 1 . . . 1 . . . . . . Dispatch Records 3 | . . . . . . . 2 . . . 1 . . . . . . Maintenance Status 1 | . . . . . . . 1 . . . . . . . . . . Security Status 1 | . . . . . . . . . . . 1 . . . . . . Surveillance Status 1 | . . . . . . . . . . . . . . . 1 . . Patrol Status 1 | . . . . . . . 1 . . . . . . . . . . Transport Status 1 | . . . . . . . 1 . . . . . . . . . . Extermination Status 1 | . . . . . . . 1 . . . . . . . . . . Recall Extermination 1 | . . . . . . . 1 . . . . . . . . . . Zone Layout 5 | . . 1 . . . 1 . . 1 1 . . . 1 . . . Fabricator Hacks . | . . . . . . . . . . . . . . . . . . Repair Station Hacks . | . . . . . . . . . . . . . . . . . . Recycling Unit Hacks . | . . . . . . . . . . . . . . . . . . Scanalyzer . | . . . . . . . . . . . . . . . . . . Garrison Access Hacks . | . . . . . . . . . . . . . . . . . . Unauthorized Hacks 5 | . . 4 . . . . 1 . . . . . . . . . . Terminals 5 | . . 4 . . . . 1 . . . . . . . . . . Botnet 3 | . . 2 . . . . 1 . . . . . . . . . . Detonate 1 | . . 1 . . . . . . . . . . . . . . . Disrupt 1 | . . 1 . . . . . . . . . . . . . . . Fabricators . | . . . . . . . . . . . . . . . . . . Repair Stations . | . . . . . . . . . . . . . . . . . . Recycling Units . | . . . . . . . . . . . . . . . . . . Scanalyzers . | . . . . . . . . . . . . . . . . . . Garrison Access . | . . . . . . . . . . . . . . . . . . Data Cores Recovered 1 | . . . . . . . 1 . . . . . . . . . . Used 1 | . . . . . . . 1 . . . . . . . . . . Hacking Detections 44 | . . 6 . . . 2 12 3 1 1 8 3 . 7 1 . . Full Trace Events 4 | . . . . . . . 1 2 . . . . . 1 . . . Feedback Events 1 | . . . . . . . . . . . . . . 1 . . . Hackware Fried 1 | . . . . . . . . . . . . . . 1 . . . Feedback Blocked . | . . . . . . . . . . . . . . . . . . Robot Schematics Acquired . | . . . . . . . . . . . . . . . . . . Robots Built . | . . . . . . . . . . . . . . . . . . Matter . | . . . . . . . . . . . . . . . . . . Time . | . . . . . . . . . . . . . . . . . . Total Robot Build Rating . | . . . . . . . . . . . . . . . . . . Part Schematics Acquired . | . . . . . . . . . . . . . . . . . . Parts Built . | . . . . . . . . . . . . . . . . . . Matter . | . . . . . . . . . . . . . . . . . . Time . | . . . . . . . . . . . . . . . . . . Total Part Build Rating . | . . . . . . . . . . . . . . . . . . Parts Repaired . | . . . . . . . . . . . . . . . . . . Time . | . . . . . . . . . . . . . . . . . . Parts Recycled . | . . . . . . . . . . . . . . . . . . Recycled Matter . | . . . . . . . . . . . . . . . . . . Retrieved Matter . | . . . . . . . . . . . . . . . . . . Retrieved Components . | . . . . . . . . . . . . . . . . . . Parts Scanalyzed . | . . . . . . . . . . . . . . . . . . Part Schematics Acquired . | . . . . . . . . . . . . . . . . . . Parts Damaged . | . . . . . . . . . . . . . . . . . . Bothacking | -11 -10 -9 -9 -9 -8 -8 -8 -8 -6 -5 -5 -5 -5 -5 -4 -4 -4 ------------ Run | Scr Mat Mat Min Exi Min Mat Sto Rec Fac Fac Ext Cet Arc Hub Fac Upp Upp Used RIF Installer . | . . . . . . . . . . . . . . . . . . Robots Hacked . | . . . . . . . . . . . . . . . . . . Non-combat . | . . . . . . . . . . . . . . . . . . Combat . | . . . . . . . . . . . . . . . . . . Robot Hacks Applied . | . . . . . . . . . . . . . . . . . . Relay Couplers Released 5 | . . . . . . . 2 . . . . . . 3 . . . Machine Destruction 5 | . . . . . . . 2 . . . . . . 3 . . . Robots Rewired 10 | . . . . . . . . . . . 10 . . . . . . Allies Hacked . | . . . . . . . . . . . . . . . . . . Hacks Repelled . | . . . . . . . . . . . . . . . . . . Allies | -11 -10 -9 -9 -9 -8 -8 -8 -8 -6 -5 -5 -5 -5 -5 -4 -4 -4 -------- Run | Scr Mat Mat Min Exi Min Mat Sto Rec Fac Fac Ext Cet Arc Hub Fac Upp Upp Total Allies 38 | . . . . . . . 11 . . . 22 5 . . . . . Largest Group 15 | . . . . . . . 11 9 8 . 13 15 9 7 . . . Highest-Rated Group 870 | . . . . . . . 272 240 141 . 510 870 426 356 . . . Highest-Rated Ally 156 | . . . . . . . 99 99 29 . 156 150 94 94 . . . Total Orders . | . . . . . . . . . . . . . . . . . . Ally Attacks 446 | . . . . . . . 48 108 28 . 190 23 21 28 . . . Total Damage 8688 | . . . . . . . 1446 714 372 . 4008 579 692 877 . . . Kills 91 | . . . . . . . 20 21 4 . 32 5 5 4 . . . Allies Corrupted . | . . . . . . . . . . . . . . . . . . Allies Melted . | . . . . . . . . . . . . . . . . . . Intel | -11 -10 -9 -9 -9 -8 -8 -8 -8 -6 -5 -5 -5 -5 -5 -4 -4 -4 ------- Run | Scr Mat Mat Min Exi Min Mat Sto Rec Fac Fac Ext Cet Arc Hub Fac Upp Upp Robot Analysis Total 1 | . . . . . . . . . . . . . . 1 . . . Derelict Logs Recovered . | . . . . . . . . . . . . . . . . . . Drone Launches . | . . . . . . . . . . . . . . . . . . Drone Recoveries . | . . . . . . . . . . . . . . . . . . Exploration | -11 -10 -9 -9 -9 -8 -8 -8 -8 -6 -5 -5 -5 -5 -5 -4 -4 -4 ------------- Run | Scr Mat Mat Min Exi Min Mat Sto Rec Fac Fac Ext Cet Arc Hub Fac Upp Upp Turns Passed 7217 | 9 42 550 93 214 221 184 729 454 556 76 676 264 68 737 149 516 1679 Spaces Moved 5551 | 18 81 460 94 214 144 271 722 474 623 115 609 195 62 753 184 423 109 Core 1302 | 18 81 460 94 214 144 . 286 . . . . . . . . . 5 Treads . | . . . . . . . . . . . . . . . . . . Legs . | . . . . . . . . . . . . . . . . . . Wheels 497 | . . . . . . . . . . . . . . . . 393 104 Hover . | . . . . . . . . . . . . . . . . . . Flight 3752 | . . . . . . 271 436 474 623 115 609 195 62 753 184 30 . Fastest Speed 34 | 50 50 100 100 100 100 37 37 34 34 37 37 37 37 37 37 37 100 Average Speed 56 | 50 50 100 100 100 100 37 60 36 38 37 37 37 37 37 37 95 105 Slowest Speed 250 | 50 50 100 100 100 100 37 100 37 127 37 37 37 37 40 37 100 250 Overloaded Moves . | . . . . . . . . . . . . . . . . . . Propulsion Burnouts . | . . . . . . . . . . . . . . . . . . Robots Hopped 5 | . . . . . . . . . . . 2 . . 2 1 . . Cave-ins Triggered 1 | . . . . . . . . . . . . . . . . . 1 Exploration Rate (%) 45 | 4 24 45 17 61 55 26 92 94 19 4 75 75 81 56 7 70 13 Regions Visited 17 Branch Regions 11 Pre-discovered Areas . | . . . . . . . . . . . . . . . . . . Known Exits Taken 17 | 1 1 1 1 1 1 1 1 1 1 1 1 1 1 1 1 1 . Unknown Exits Taken . | . . . . . . . . . . . . . . . . . . Scrap Searched . | . . . . . . . . . . . . . . . . . . Spaces Dug 33 | . . 3 . . . 6 4 1 7 1 . . . 5 1 1 4 Terrain Destroyed 409 | . . 43 . . . 6 36 1 7 1 . . . 309 1 1 4 Melee 33 | . . 3 . . . 6 4 1 7 1 . . . 5 1 1 4 Projectile . | . . . . . . . . . . . . . . . . . . AOE 376 | . . 40 . . . . 32 . . . . . . 304 . . . Terrain Rammed . | . . . . . . . . . . . . . . . . . . Walls Destroyed . | . . . . . . . . . . . . . . . . . . Machines Disabled . | . . . . . . . . . . . . . . . . . . Actions | -11 -10 -9 -9 -9 -8 -8 -8 -8 -6 -5 -5 -5 -5 -5 -4 -4 -4 --------- Run | Scr Mat Mat Min Exi Min Mat Sto Rec Fac Fac Ext Cet Arc Hub Fac Upp Upp Total 9014 | 17 81 492 93 214 221 336 895 697 870 135 967 376 100 1121 240 502 1657 Wait 3051 | . 1 . . 1 77 56 107 192 170 14 268 177 36 317 43 56 1536 Move 5524 | 17 80 459 93 213 143 270 721 473 622 114 604 194 61 748 181 422 109 Hop 5 | . . . . . . . . . . . 2 . . 2 1 . . Pick Up . | . . . . . . . . . . . . . . . . . . Fast Attach 3 | . . . . . . . . . . . . . . 3 . . . Attach 10 | . . . . . . . . . 2 . 7 . . . . 1 . Detach 13 | . . . . . 1 . 1 . 1 . 8 . . . . 1 1 Swap 2 | . . . . . . . . 1 . . . . . . . 1 . Drop . | . . . . . . . . . . . . . . . . . . Fire . | . . . . . . . . . . . . . . . . . . Melee 356 | . . 33 . . . 10 66 31 39 7 64 5 3 51 15 21 11 Ram . | . . . . . . . . . . . . . . . . . . Kick . | . . . . . . . . . . . . . . . . . . Crush . | . . . . . . . . . . . . . . . . . . Escape Stasis 50 | . . . . . . . . . 36 . 14 . . . . . . Rewire . | . . . . . . . . . . . . . . . . . . Trap . | . . . . . . . . . . . . . . . . . . Miscellaneous . | . . . . . . . . . . . . . . . . . . Route ------- -11/Scrapyard -10/Materials -9/Materials (discovered 2 exits: *Mat / *Min) -9/Mines -9/Exiles (discovered 2 exits: *Min x2) -8/Mines -8/Materials -8/Storage (discovered 2 exits: *Fac / *Rec) -8/Recycling -6/Factory (discovered 4 exits: *Fac x4) -5/Factory -5/Extension (discovered 3 exits: *Fac x2 / *Cet) -5/Cetus -5/Archives (discovered 2 exits: *Fac / *Hub) -5/Hub_04(d) (discovered 4 exits: *Fac x4) -4/Factory -4/Upper Caves -4/Upper Caves History --------- Turn | Location | Event 4 | -11/Scrapyard | Discovered new exit (range 14) 10 | -11/Scrapyard | Identified exit to Materials 10 | -11/Scrapyard | Entered Materials 44 | -10/Materials | Discovered new exit (range 16) 51 | -10/Materials | Identified exit to Materials 52 | -10/Materials | Entered another Materials area 52 | -9/Materials | Evolved 2 slots: Utility x2 532 | -9/Materials | Identified exit to Mines 538 | -9/Materials | Discovered new exit (range 10) 552 | -9/Materials | Build established: Assassin 602 | -9/Materials | Entered Mines 633 | -9/Mines | Met a Derelict bent on vengeance 691 | -9/Mines | Deemed a non-threat by the Exiles lab entrance 691 | -9/Mines | Discovered new exit (range 5) 694 | -9/Mines | Identified exit to Exiles 695 | -9/Mines | Entered Exiles 709 | -9/Exiles | Discovered new exit (range 15) 723 | -9/Exiles | Met 8R-AWN 737 | -9/Exiles | Met EX-HEX 770 | -9/Exiles | Met EX-BIN 781 | -9/Exiles | Aligned with FarCom system 782 | -9/Exiles | Given EX-Vault access code 809 | -9/Exiles | Opened EX-Vault 826 | -9/Exiles | Warned to stay clear of 0b10 Research branches 860 | -9/Exiles | Met EX-DEC 894 | -9/Exiles | Discovered new exit (range 14) 908 | -9/Exiles | Identified exit to Mines 909 | -9/Exiles | Entered Mines 1121 | -8/Mines | Discovered new exit (range 10) 1129 | -8/Mines | Identified exit to Materials 1130 | -8/Mines | Entered Materials 1130 | -8/Materials | Evolved 2 slots: Power x1, Propulsion x1 1276 | -8/Materials | Discovered new exit (range 16) 1314 | -8/Materials | Identified exit to Storage 1314 | -8/Materials | Entered Storage 1349 | -8/Storage | Met 01-MTF 1418 | -8/Storage | Identified exit to Factory 1812 | -8/Storage | Assisted by bots powering up and referring to "LRC-V3" 1965 | -8/Storage | Core integrity fell below 50% 1971 | -8/Storage | Discovered new exit (range 17) 2016 | -8/Storage | Used back door to open Recycling access 2017 | -8/Storage | Identified exit to Recycling 2043 | -8/Storage | Entered Recycling 2043 | -8/Recycling | Accompanied by 9 allies (01-MTF) 2048 | -8/Recycling | 01-MTF left 2048 | -8/Recycling | Spotter reported a threat 2053 | -8/Recycling | Spotter reported a threat 2058 | -8/Recycling | Spotter reported a threat 2068 | -8/Recycling | Spotter reported a threat 2101 | -8/Recycling | Build established: Commander-Scout 2131 | -8/Recycling | Spotter reported a threat 2131 | -8/Recycling | Spotter reported a threat 2163 | -8/Recycling | Spotter reported a threat 2176 | -8/Recycling | Spotter reported a threat 2178 | -8/Recycling | Spotter reported a threat 2182 | -8/Recycling | Spotter reported a threat 2215 | -8/Recycling | Spotter reported a threat 2229 | -8/Recycling | Spotter reported a threat 2235 | -8/Recycling | Spotter reported a threat 2258 | -8/Recycling | Spotter reported a threat 2258 | -8/Recycling | Spotter reported a threat 2293 | -8/Recycling | Discovered new exit (range 6) 2296 | -8/Recycling | Spotter reported a threat 2296 | -8/Recycling | Spotter reported a threat 2296 | -8/Recycling | Spotter reported a threat 2347 | -8/Recycling | Spotter reported a threat 2347 | -8/Recycling | Spotter reported a threat 2347 | -8/Recycling | Spotter reported a threat 2347 | -8/Recycling | Spotter reported a threat 2398 | -8/Recycling | Spotter reported a threat 2398 | -8/Recycling | Spotter reported a threat 2398 | -8/Recycling | Spotter reported a threat 2398 | -8/Recycling | Spotter reported a threat 2449 | -8/Recycling | Spotter reported a threat 2449 | -8/Recycling | Spotter reported a threat 2449 | -8/Recycling | Spotter reported a threat 2451 | -8/Recycling | Spotter reported a threat 2457 | -8/Recycling | Identified exit to Factory 2497 | -8/Recycling | Entered Factory 2497 | -6/Factory | Accompanied by 8 allies 2497 | -6/Factory | Evolved 4 slots: Utility x4 2510 | -6/Factory | Identified exit to Factory 2768 | -6/Factory | Lost 5 parts (2p1n2u) 3049 | -6/Factory | Build established: Hacker-Scout 3053 | -6/Factory | Entered another Factory area 3053 | -5/Factory | Evolved 2 slots: Propulsion x2 3069 | -5/Factory | Discovered new exit (range 12) 3129 | -5/Factory | Identified exit to Extension 3129 | -5/Factory | Entered Extension 3192 | -5/Extension | Rescued a captive Derelict 3193 | -5/Extension | Rescued a captive Derelict 3295 | -5/Extension | Rescued a captive Derelict 3344 | -5/Extension | Rescued A7 3382 | -5/Extension | Identified exit to Factory 3382 | -5/Extension | Identified exit to Cetus 3400 | -5/Extension | Rescued a captive Derelict 3401 | -5/Extension | Rescued a captive Derelict 3407 | -5/Extension | Rescued a captive Derelict 3407 | -5/Extension | Rescued a captive Derelict 3475 | -5/Extension | Spotted B-75 Beast 3477 | -5/Extension | Spotted B-75 Beast 3505 | -5/Extension | Build established: Hacker-Mutant 3507 | -5/Extension | Allies destroyed B-75 Beast 3511 | -5/Extension | Allies destroyed B-75 Beast 3550 | -5/Extension | Found Centrium Greatsword 3593 | -5/Extension | Rescued a captive Derelict 3594 | -5/Extension | Rescued a captive Derelict 3607 | -5/Extension | Rescued a captive Derelict 3608 | -5/Extension | Rescued a captive Derelict 3805 | -5/Extension | Entered Cetus 3805 | -5/Cetus | Accompanied by 12 allies (A7) 3810 | -5/Cetus | Acquired a Cetus Manufacturing Module code from A7 3828 | -5/Cetus | Spotted Cetus Guard 3828 | -5/Cetus | Spotted Cetus Guard 3831 | -5/Cetus | Spotted Cetus Guard 3833 | -5/Cetus | Spotted Cetus Guard 3836 | -5/Cetus | Destroyed Cetus Guard 3838 | -5/Cetus | Allies destroyed Cetus Guard 3845 | -5/Cetus | Allies destroyed Cetus Guard 3850 | -5/Cetus | Allies destroyed Cetus Guard 3866 | -5/Cetus | Started Cetus Manufacturing Module 3891 | -5/Cetus | Manufactured an Enhanced Grunt 3891 | -5/Cetus | Escorted A7 to Cetus Mainframe 3906 | -5/Cetus | Discovered new exit (range 15) 3915 | -5/Cetus | Identified exit to Archives 3916 | -5/Cetus | Manufactured an Enhanced Grunt 3929 | -5/Cetus | Build established: Hacker-Gladiator 3941 | -5/Cetus | Manufactured an Enhanced Grunt 3966 | -5/Cetus | Manufactured an Enhanced Grunt 3991 | -5/Cetus | Manufactured an Enhanced Grunt 4069 | -5/Cetus | Entered Archives 4069 | -5/Archives | Accompanied by 9 allies 4090 | -5/Archives | Unable to access archive contents 4092 | -5/Archives | Discovered exit to Factory (range 16) 4094 | -5/Archives | Unable to access archive contents 4098 | -5/Archives | Discovered new exit (range 15) 4104 | -5/Archives | Identified exit to Hub_04(d) 4114 | -5/Archives | Lost 3 parts (1p1u1w) 4137 | -5/Archives | Entered Hub_04(d) 4137 | -5/Hub_04(d) | Accompanied by 7 allies 4220 | -5/Hub_04(d) | Imp. Hacking Suite fried by hacking feedback 4385 | -5/Hub_04(d) | Build established: Hacker-Mutant 4632 | -5/Hub_04(d) | Network Hub disabled 4632 | -5/Hub_04(d) | Spotted Lightning 4632 | -5/Hub_04(d) | Spotted Lightning 4632 | -5/Hub_04(d) | Spotted Lightning 4632 | -5/Hub_04(d) | Spotted Lightning 4632 | -5/Hub_04(d) | Network Hub disabled 4632 | -5/Hub_04(d) | Spotted Lightning 4632 | -5/Hub_04(d) | Spotted Lightning 4632 | -5/Hub_04(d) | Spotted Lightning 4635 | -5/Hub_04(d) | Spotted Lightning 4636 | -5/Hub_04(d) | Spotted Lightning 4667 | -5/Hub_04(d) | Lost 4 parts (1p1n2u) 4737 | -5/Hub_04(d) | First assault squad dispatched 4812 | -5/Hub_04(d) | Spotted Lightning 4815 | -5/Hub_04(d) | Spotted Lightning 4863 | -5/Hub_04(d) | Spotted Lightning 4874 | -5/Hub_04(d) | Entered Factory 4874 | -4/Factory | Evolved 2 slots: Power x1, Utility x1 4946 | -4/Factory | Build established: Mutant 5003 | -4/Factory | Discovered new exit (range 13) 5011 | -4/Factory | Identified exit to Upper Caves 5023 | -4/Factory | Entered Upper Caves 5247 | -4/Upper Caves | Build established: Generator-Mutant 5534 | -4/Upper Caves | Discovered new exit (range 4) 5538 | -4/Upper Caves | Identified exit to Upper Caves 5539 | -4/Upper Caves | Entered another Upper Caves area 5596 | -4/Upper Caves | Spotted B-86 Titan 7206 | -4/Upper Caves | Core integrity fell below 50% 7208 | -4/Upper Caves | Crushed by falling debris 7215 | -4/Upper Caves | Core integrity fell below 20% 7218 | -4/Upper Caves | Destroyed by S-27 Virus with Autogun Last Messages --------------- 07201_ Knocked back. 07203_ B-86 Titan activates siege mode. 07205_ Knocked back. 07205_ Mic. Fission Core destroyed. 07205_ Destroyed VTOL Module. 07208_ The unstable cave ceiling collapses. 07208_ Crushed by falling debris. 07208_ Exp. Melee Analysis Suite destroyed. 07208_ System corrupted by crushing effect (+5). [DISCOUNT: For the next 60 turns enjoy 50% off any Energy Gun!] 07210_ S-27 Virus destroyed. 07210_ Vibroblade follow-up attack on S-27 Virus. 07210_ S-27 Virus destroyed. [Achievement: Ambidextrous] 07211_ Knocked back. 07214_ Penetrated by Slug. 07214_ Slug penetrates Wall. 07215_ Acquired 26 matter. 07218_ System corrupted: Energy discharge (-27). 07218_ Knocked back. Map ----- +----------------------------------------------------+ | ?????????????????????????????????????????????????? | | ?????????????????????????????????????????????????? | | ?????????????????????????????????????????????????? | | ?????????????????????????????????????????????????? | | ?????????????????????????????????????????????????? | | ?????????????????????????????????????????????????? | | ?????????????????????????????????????????????????? | | ?????????????????????????????????????????????????? | | ?????????????????????????????????????????????????? | | ?????????????????????????????????????????????????? | | ?????????????????????????????????????????????????? | | ?????????????????????????????????????????????????? | | ?????????????????????????????????????????????????? | | ?????????????????????????????????????????????????? | | ?????????????????????????????????????????????????? | | ?????????????????????????????????????????????????? | | ?????????????????????????????????????????????????? | | ??????????????????????????????????? ? ???????????? | | ??????????????????????????????????? ? ???????????? | | ??????????????????????????????????? # ???????????? | | ?????????????????????####?????????? ##?????????? | | ????????????????????## ##????????? # ###???????? | | ????????????????????# ##???????? ????????? | | ????????????????????# # ##??????? ?????????? | | ???????????????????## #; #######? #?????????? | | ???????????????????####;;@%s ### #?????????? | | ??????????????????# ## ##s ## ## ###???????? | | ??????????????????##?###;#sBB # ??????? | | ?????????????????????#### #BB # ?????????? | | ?????????????????????# #???????????? | | ?????????????????????## # #######?????? | | ??????????????????????### ## "%" #?????? | | ??????????????????????## " #?????? | | ??????????????????????# # ### ## #?????? | | ?????????????????????## ## #?# #? #?????? | | ???????????????####### ####### ## #?# ## #?????? | | ???????????????# # #????## #### ##????? | | ???????????????# ##???????###?# #????? | | ???????????????# ##### #??????????## #????? | | ???????????????# ##??# #######????# #????? | | ???????????????# #### ???## ######? | | ???????????????## #???# # | | ?? #### #????# "" # | | ?? ######## """"" # ## | | ?? #### ## """" #? #? | | ?? #?# " #?? # | | ??? ### ## ## "" "" #??? | | ??? ## ???## ##?# ### ###" """ #???? | | ??????# ?????## #??? #?######?#" " "" #???? | | ??????##????????###??? #????????# #???? | +----------------------------------------------------+ Best States ------------- Heat Dissipation 43 Energy Generation 44 Energy Capacity 310 Matter Stores 300 Matter Capacity 300 Sight Range 16 Robot Scan Range 16 Terrain Scan Range 24 Terrain Scan Density 210 ECM Strength 3 Weapon Shielding 66 Phase Shifting 10 Evasion (%) 82 Melee Accuracy 20 Offensive Hacking 59 Item Schematics ----------------- None Robot Schematics ------------------ None Fabricated ------------ Nothing Alien Tech Used ----------------- None Achievements -------------- Ambidextrous Prolific Hacker Challenges ------------ None Cogshop Purchases (45) ------------------------ Imp. Signal Interpreter (699) Imp. Sensor Array (699) Axe (1199) Adv. Terrain Scanner (799) Imp. Terrain Scan Processor (799) Adv. Sensor Array (902) Xenon Bombardment Thruster (1258) Lgt. Deuterium Engine (757) Mak. Flight Unit (1258) Lrn. Terrain Scanner (848) Mak. Flight Unit (1715) Mic. Nuclear Core (1126) Mak. Flight Unit (1715) Maneuvering Thrusters (754) Mak. Hacking Suite (1079) Adv. Terrain Scan Processor (548) Mic. Nuclear Core (1360) Mak. Flight Unit (2157) Imp. Hacking Suite (1273) Imp. Hacking Suite (1273) Imp. Hacking Suite (1273) Imp. Hacking Suite (1273) Field Propulsion Drive (2927) Lrn. Terrain Scanner (913) Mak. Flight Unit (2697) Imp. Datajack (931) Centrium Greatsword (3022) Adv. Melee Analysis Suite (1197) Imp. Actuator Array (1031) Field Propulsion Array (2967) Lgt. Angular Momentum Engine (788) Vibroblade (3012) Vibroblade (3012) Imp. Weapon Shielding (713) Field Propulsion Array (2049) Exp. Melee Analysis Suite (1219) Mic. Fission Core (1173) Mic. Fission Core (1173) Adv. ECM Suite (767) Imp. Phase Shifter (1056) Field Propulsion Array (2298) Field Propulsion Drive (2106) Mic. Fission Core (1460) Imp. Maneuvering Thrusters (912) Centrium Wheel (1473) Game ------ Seed IonSeismicChainsword Manual? 0 Play Time 01:26:23 Cumulative 148.1 hours Start 2020.09.16 @ 15:28:36 End 2020.09.16 @ 18:56:16 Sessions 3 Manual Loads 0 Difficulty Rogue Special Mode AFD2019/Pay2Buy Game No. 200 Rogue 157 Adventurer 3 Explorer 40 Win Type - Total 3 Types 2/1/0/0/0/0/0/0/0 Lore% 51 Gallery% 75 Achievement% 55 Wizard Run 0 Options --------- ASCII 0 Keyboard 0 Movement Numpad Keybinds 0 Fullscreen 2 Font 18/SmallcapsGlow Map View 76x50 Tactical HUD 1 Map Filters NONE Filters NONE Steam 1 RUN: 9ee35324-fd5a-4b71-9888-69808416de76